bitfinex-derivatives/quotes_ETHF0:USTF0_20250104
["timestamp","ask_amount","ask_price","bid_price","bid_amount"]
[1736016784699,0.2758,3626.3,3626.2,0.72311]
[1736016788701,3.22537926,3626.4,3626.2,0.4473]
[1736016788897,3.22537926,3626.4,3626.3,1.27969711]
[1736016790998,0.11479858,3626.4,3626.3,11.64555755]
[1736016791320,0.11479858,3626.8,3626.7,0.27577]
[1736016791498,0.11479858,3626.8,3626.7,4.48746711]
[1736016792505,0.27574,3627.2,3627.1,0.27574]
[1736016792705,0.27574,3627.2,3627.1,1.27963711]
[1736016793805,0.68947029,3627.2,3627.1,1.27963711]
[1736016795007,0.27574,3627.2,3627.1,1.27963711]
[1736016795307,4.71823237,3627.4,3627.1,1.00389711]
[1736016795504,0.27573,3627.3,3627.1,1.27962711]
[1736016795903,0.27573,3627.2,3627.1,1.27962711]
[1736016796304,4.71823237,3627.4,3627.1,1.00389711]
[1736016796505,0.27573,3627.3,3627.2,0.27573]
[1736016798006,0.68944879,3627.3,3627.2,0.27573]
[1736016799008,0.41371879,3627.3,3627.1,1.00389711]
[1736016799205,0.27576,3626.9,3626.8,0.27576]
[1736016799401,1.4176159,3627.3,3626.7,4.21169711]
[1736016799619,1.13696,3626.8,3626.7,1.27966711]
[1736016800510,0.27577,3626.7,3626.6,1.27966711]
[1736016800700,0.72347,3626.7,3626.6,1.27966711]
[1736016801105,0.4477,3626.7,3626.6,1.27966711]
[1736016801503,0.72347,3626.7,3626.6,1.27966711]
[1736016803115,0.4477,3626.7,3626.6,1.27966711]
[1736016803517,0.4477,3626.7,3626.6,4.48746711]
[1736016804412,0.445,3626.8,3626.6,4.21169711]
[1736016804612,0.4367,3627.1,3627.0,0.27575]
[1736016804814,4.30153237,3627.2,3627.1,0.27574]
[1736016805016,4.30153237,3627.2,3627.1,0.68694]
[1736016805519,1.15792,3627.3,3627.2,0.27573]
[1736016806317,1.15792,3627.3,3627.2,1.27962711]
[1736016808326,0.8822,3627.3,3627.2,1.27962711]
[1736016809325,1.15793,3627.3,3627.2,0.27573]
[1736016809517,1.15793,3627.3,3627.0,4.21169711]
[1736016809718,0.8822,3627.3,3627.1,0.27573]
[1736016809919,0.27574,3627.1,3627.0,3.48354]
[1736016811026,0.27574,3627.2,3627.0,3.48354]
[1736016811528,0.27574,3627.1,3627.0,3.48354]
[1736016811733,0.27574,3627.1,3627.0,3.2078]
[1736016812223,0.27574,3627.1,3627.0,3.48355]
[1736016812847,1.27963711,3627.1,3627.0,3.2078]
[1736016813329,0.27574,3627.1,3627.0,3.2078]
[1736016816228,1.00389711,3627.1,3626.6,1.00389711]
[1736016816434,0.27577,3626.7,3626.6,1.27966711]
[1736016816730,0.27577,3626.8,3626.7,0.27576]
[1736016821034,0.27576,3626.9,3626.7,0.27576]
[1736016821534,0.68406,3626.8,3626.7,0.27576]
[1736016821834,1.09676,3626.8,3626.7,0.27576]
[1736016823832,0.4083,3626.8,3626.7,0.27576]
[1736016827127,4.71423237,3627.2,3626.6,1.41359711]
[1736016827328,0.414,3627.1,3627.0,1.27963711]
[1736016828135,0.414,3627.1,3627.0,1.00389711]
[1736016828342,0.27575,3627.0,3626.9,0.27575]
[1736016829138,0.6895049,3627.0,3626.9,0.27575]
[1736016830041,0.4137549,3627.0,3626.9,0.27575]
[1736016830240,0.6895049,3627.0,3626.9,0.27575]
[1736016834337,0.27577,3626.7,3626.6,0.27577]
[1736016834532,0.27577,3626.7,3626.6,1.27966711]
[1736016835143,1.00389711,3626.9,3626.5,7.54510788]
[1736016835335,1.10678,3626.6,3626.5,7.54510788]
[1736016835642,1.10678,3626.6,3626.5,3.2078]
[1736016836036,1.52198,3626.6,3626.5,3.2078]
[1736016836945,1.9357736,3626.6,3626.5,3.2078]
[1736016838942,0.27579,3626.4,3626.3,1.00389711]
[1736016840443,0.27579,3626.4,3626.3,1.27969711]
[1736016841046,0.27579,3626.4,3626.3,1.00389711]
[1736016841245,0.27579,3626.4,3626.3,1.27969711]
[1736016842146,0.27579,3626.5,3626.4,0.27579]
[1736016845350,2.60198,3626.6,3626.5,0.27578]
[1736016845547,2.60198,3626.6,3626.5,1.27967711]
[1736016845743,2.3262,3626.6,3626.5,1.27967711]
[1736016846454,4.47546074,3626.6,3626.5,1.27967711]
[1736016848052,2.14926074,3626.6,3626.5,1.27967711]
[1736016849447,2.14926074,3626.7,3626.5,1.00389711]
[1736016849749,2.14926074,3626.7,3626.6,1.70187711]
[1736016850752,2.14926074,3626.7,3626.6,4.90967711]
[1736016853658,2.14926074,3626.7,3626.6,1.70187711]
[1736016855347,3.22342957,3626.8,3626.6,1.42609711]
[1736016855556,3.22342957,3626.8,3626.7,0.27577]
[1736016858449,3.63718488,3626.9,3626.6,5.76340499]
[1736016858653,3.63718488,3626.9,3626.8,1.27965711]
[1736016858851,3.63718488,3626.9,3626.6,4.33730788]
[1736016859052,0.27577,3626.7,3626.6,4.33730788]
[1736016859663,0.27577,3626.7,3626.6,4.61308788]
[1736016859859,0.27577,3626.7,3626.6,0.27578]
[1736016860557,3.49918957,3626.8,3626.7,0.27577]
[1736016861156,3.22342957,3626.8,3626.7,0.27577]
[1736016861358,4.57729237,3626.8,3626.7,0.27577]
[1736016861563,4.30153237,3626.8,3626.7,0.69407]
[1736016862663,3.22650528,3626.9,3626.8,0.27576]
[1736016862961,3.22650528,3626.9,3626.8,1.27965711]
[1736016863352,3.22650528,3626.9,3626.8,0.27576]
[1736016863956,0.41374978,3626.9,3626.8,0.27576]
[1736016865156,0.41374978,3626.9,3626.6,5.34120499]
[1736016865157,1.70994711,3627.0,3626.9,0.27575]
[1736016866764,0.41374978,3627.0,3626.9,0.27575]
[1736016867168,0.41374978,3627.0,3626.9,0.70455]
[1736016868368,2.15235444,3627.2,3627.1,0.27574]
[1736016870964,2.15235444,3627.3,3627.0,5.34004578]
[1736016871168,2.15235444,3627.3,3627.2,1.27962711]
[1736016872665,2.15235444,3627.3,3627.2,4.48742711]
[1736016873866,2.15235444,3627.4,3627.3,0.27572]
[1736016875659,2.15235444,3627.5,3627.4,0.27572]
[1736016875861,2.15235444,3627.5,3627.4,1.27961711]
[1736016878572,2.15235444,3627.6,3627.5,0.27571]
[1736016880868,2.15235444,3627.6,3627.5,0.72521]
[1736016882578,2.58195444,3627.7,3627.6,0.2757]
[1736016882778,2.58195444,3627.7,3627.6,1.27959711]
[1736016883675,0.4296,3627.7,3627.6,1.27959711]
[1736016885000,0.4296,3627.7,3627.6,0.2757]
[1736016885175,1.70918711,3627.7,3627.6,0.2757]
[1736016885782,0.27572,3627.3,3627.2,3.2078]
[1736016885972,1.27961711,3627.3,3627.2,3.2078]
[1736016888279,0.27572,3627.3,3627.2,3.48353]
[1736016890275,0.69302,3627.3,3627.2,3.48353]
[1736016890776,0.69302,3627.3,3627.2,0.27573]
[1736016891279,0.4173,3627.3,3627.2,0.27573]
[1736016891479,0.69302,3627.3,3627.2,0.27573]
[1736016892681,1.13682,3627.3,3627.2,0.27573]
[1736016893590,0.8611,3627.3,3627.2,0.27573]
[1736016894185,0.8611,3627.3,3627.2,1.27962711]
[1736016894389,1.13682,3627.3,3627.2,1.27962711]
[1736016896685,0.8611,3627.3,3627.2,1.27962711]
[1736016900788,3.01345444,3627.3,3627.2,1.27962711]
[1736016902177,2.59615444,3627.3,3627.2,1.27962711]
[1736016902385,2.15235444,3627.3,3627.2,1.70842711]
[1736016902685,2.15235444,3627.3,3627.2,2.12022711]
[1736016903983,3.22853166,3627.5,3627.4,0.27572]
[1736016903984,2.15235444,3627.5,3627.4,0.27572]
[1736016904181,2.15235444,3627.5,3627.4,1.27961711]
[1736016905289,2.57575444,3627.6,3627.4,1.00389711]
[1736016905479,2.15235444,3627.6,3627.5,0.27571]
[1736016905892,2.15235444,3627.6,3627.5,3.48351]
[1736016908790,2.15235444,3627.6,3627.3,4.61186867]
[1736016908791,0.27572,3627.4,3627.3,4.61186867]
[1736016908995,0.27572,3627.4,3627.3,4.33614867]
[1736016909191,1.27961711,3627.4,3627.3,4.33614867]
[1736016909390,1.27961711,3627.4,3627.3,2.98634867]
[1736016909587,1.27961711,3627.4,3627.3,1.10034867]
[1736016910794,0.27575,3627.0,3626.9,0.27575]
[1736016910993,0.27574,3627.1,3627.0,0.27574]
[1736016911613,9.66659025,3627.4,3626.8,1.00389711]
[1736016911790,0.27573,3627.2,3627.1,0.27573]
[1736016912097,4.58423726,3627.2,3627.1,0.27573]
[1736016913995,4.99796693,3627.2,3627.1,0.27573]
[1736016914495,0.27574,3627.1,3627.0,0.27574]
[1736016914701,0.27575,3627.0,3626.9,0.72315]
[1736016914904,0.27575,3627.0,3626.9,0.27575]
[1736016915904,0.27575,3627.0,3626.8,0.27576]
[1736016916402,3.92139045,3627.0,3626.9,0.27575]
[1736016916604,3.92139045,3627.0,3626.8,0.27576]
[1736016917005,3.92139045,3627.0,3626.6,5.84040072]
[1736016917205,3.92139045,3627.0,3626.8,0.27576]
[1736016917805,3.50766078,3627.0,3626.8,0.27576]
[1736016918405,3.50766078,3627.0,3626.7,0.27577]
[1736016918704,0.4404,3626.9,3626.7,0.27577]
[1736016919002,0.4443,3626.8,3626.6,3.6161]
[1736016919400,0.8865,3626.8,3626.7,0.27577]
[1736016920503,2.59833967,3626.8,3626.7,0.27577]
[1736016922015,2.15403967,3626.8,3626.7,2.50007072]
[1736016922202,2.15403967,3626.9,3626.8,0.27576]
[1736016922405,2.15403967,3626.9,3626.8,0.71716]
[1736016923011,2.15403967,3627.0,3626.8,0.4414]
[1736016923211,2.15403967,3627.0,3626.9,0.27575]
[1736016924315,2.59763967,3627.0,3626.9,0.27575]
[1736016924611,2.59763967,3627.0,3626.8,0.4414]
[1736016924612,2.87338967,3627.0,3626.8,0.27576]
[1736016925512,2.59763967,3627.0,3626.6,10.10082401]
[1736016925713,2.59763967,3627.0,3626.9,0.27575]
[1736016926208,3.67551078,3627.0,3626.9,0.27575]
[1736016927315,0.4436,3627.0,3626.9,0.27575]
[1736016929215,0.27577,3626.7,3626.6,3.48357]
[1736016929411,0.4436,3627.0,3626.5,6.76050401]
[1736016929611,0.4496,3626.6,3626.5,6.76050401]
[1736016930011,0.8898,3626.6,3626.5,6.76050401]
[1736016930506,0.8898,3626.6,3626.5,6.48472401]
[1736016930817,1.16558,3626.6,3626.5,6.48472401]
[1736016931017,0.27579,3626.5,3626.3,0.2758]
[1736016931217,0.71889,3626.5,3626.3,0.2758]
[1736016931519,0.4431,3626.5,3626.4,0.27579]
[1736016932214,3.67501078,3626.5,3626.4,0.27579]
[1736016932518,3.67501078,3626.5,3626.2,3.6314]
[1736016933120,3.67501078,3626.5,3626.2,3.2078]
[1736016933321,0.2758,3626.4,3626.2,3.4836]
[1736016933517,0.2758,3626.4,3626.2,0.2758]
[1736016933720,0.4431,3626.5,3626.4,0.27579]
[1736016934823,2.59629668,3626.5,3626.1,2.22430072]
[1736016935225,2.87208668,3626.5,3626.3,0.2758]
[1736016935823,2.87208668,3626.5,3626.4,0.27579]
[1736016936221,2.59629668,3626.5,3626.4,0.27579]
[1736016936421,2.87208668,3626.5,3626.3,0.2758]
[1736016939726,2.87208668,3626.5,3626.0,2.24138981]
[1736016939727,2.59629668,3626.5,3626.4,0.27579]
[1736016941132,2.87207668,3626.5,3626.3,0.27579]
[1736016941332,2.59629668,3626.5,3626.4,0.27579]
[1736016941532,2.59629668,3626.5,3626.1,3.2078]
[1736016941727,2.59629668,3626.5,3626.4,0.27579]
[1736016943632,0.4431,3626.5,3626.4,0.27579]
[1736016945327,0.71889,3626.5,3626.3,1.71630851]
[1736016945527,0.71889,3626.5,3626.4,0.27579]
[1736016945940,0.4431,3626.5,3626.4,0.27579]
[1736016950838,2.59629668,3626.5,3626.4,0.27579]
[1736016952642,2.15319668,3626.5,3626.4,0.27579]
[1736016952839,2.15319668,3626.5,3626.4,0.68539]
[1736016965147,2.15319668,3626.5,3626.4,0.27579]
[1736016966951,3.68151078,3626.6,3626.3,1.44051851]
[1736016967157,3.68151078,3626.6,3626.5,0.27578]
[1736016968054,4.09530632,3626.6,3626.5,0.27578]
[1736016970258,3.68151078,3626.6,3626.5,1.27989851]
[1736016972059,3.68151078,3626.6,3626.5,0.27578]
[1736016973151,3.68151078,3626.6,3626.5,1.27989851]
[1736016973349,0.4496,3626.6,3626.5,1.27989851]
[1736016973862,0.86339252,3626.6,3626.5,1.27989851]
[1736016975159,0.4496,3626.6,3626.5,1.27989851]
[1736016975560,4.30850726,3626.7,3626.6,0.27578]
[1736016975762,4.30850726,3626.7,3626.6,0.72068]
[1736016976259,4.30850726,3626.7,3626.6,3.92848]
[1736016976757,0.41379252,3626.7,3626.6,3.92848]
[1736016978260,2.15526368,3627.0,3626.9,0.27575]
[1736016978464,2.15526368,3627.0,3626.9,1.27986851]
[1736016979561,2.15526368,3627.0,3626.9,5.64097526]
[1736016980864,2.15526368,3627.1,3627.0,0.27575]
[1736016981064,2.15526368,3627.1,3627.0,4.48766851]
[1736016982364,2.15526368,3627.3,3627.2,0.27573]
[1736016982561,2.15526368,3627.3,3627.2,1.27984851]
[1736016982958,2.15526368,3627.3,3627.2,2.16004851]
[1736016983562,3.00766368,3627.4,3627.3,0.27572]
[1736016983961,2.15526368,3627.4,3627.3,0.27572]
[1736016984966,2.15526368,3627.5,3627.4,0.27572]
[1736016985167,2.15526368,3627.5,3627.4,4.48763851]
[1736016985868,2.15526368,3627.6,3627.4,4.21191851]
[1736016986072,2.15526368,3627.6,3627.5,1.27982851]
[1736016986266,2.15526368,3627.6,3627.5,1.27798665]
[1736016987756,3.15938219,3627.7,3627.2,0.27573]
[1736016987963,0.27572,3627.4,3627.1,0.27574]
[1736016988364,0.27572,3627.4,3627.0,4.21191851]
[1736016988567,0.4126,3627.3,3627.2,0.27573]
[1736016989780,0.4126,3627.3,3627.2,1.27984851]
[1736016990162,1.41671851,3627.3,3627.0,3.2078]
[1736016990362,1.27985851,3627.1,3626.8,1.27987851]
[1736016990566,0.27575,3626.9,3626.7,3.2078]
[1736016990766,0.4208,3626.8,3626.7,3.2078]
[1736016990969,0.8524,3626.8,3626.7,3.2078]
[1736016991259,0.8524,3626.8,3626.7,3.48357]
[1736016996866,3.00766368,3626.8,3626.7,3.48357]
[1736017000172,3.00766368,3626.8,3626.7,0.27577]
[1736017000377,3.00766368,3626.8,3626.7,3.48357]
[1736017003372,0.8524,3626.8,3626.7,3.48357]
[1736017003771,0.8524,3626.8,3626.7,4.48768851]
[1736017006578,0.4316,3626.8,3626.7,4.48768851]
[1736017007894,0.4316,3626.8,3626.7,1.27988851]
[1736017008271,0.4316,3626.8,3626.7,4.48768851]
[1736017009278,0.4316,3626.8,3626.7,3.48357]
[1736017009477,0.4316,3626.8,3626.7,4.48768851]
[1736017010775,0.4316,3626.8,3626.7,1.27988851]
[1736017011683,2.15526368,3626.9,3626.8,0.27576]
[1736017011881,3.67269553,3627.0,3626.9,0.27575]
[1736017012676,3.23289553,3627.0,3626.9,1.27986851]
[1736017012870,3.23289553,3627.0,3626.9,4.89446851]
[1736017014674,0.8424,3627.4,3626.9,4.89446851]
[1736017014675,3.23289553,3627.1,3626.9,4.89446851]
[1736017014875,3.23289553,3627.1,3627.0,1.27986851]
[1736017015876,2.15415906,3627.1,3627.0,1.27986851]
[1736017019077,2.15415906,3627.2,3627.1,0.27574]
[1736017019987,3.6466114,3627.3,3627.1,0.27574]
[1736017020186,0.27574,3627.1,3626.9,3.89035]
[1736017020391,0.27574,3627.1,3626.9,4.89446851]
[1736017020689,0.4332,3627.0,3626.9,1.68666851]
[1736017022794,3.23289553,3627.1,3627.0,0.27575]
[1736017023293,3.23289553,3627.1,3626.9,1.68666851]
[1736017024392,2.15513312,3627.0,3626.9,1.68666851]
[1736017025982,2.15513312,3627.0,3626.8,4.0684]
[1736017026182,0.27576,3626.8,3626.7,1.00411851]
[1736017026385,1.14936,3626.9,3626.7,1.00411851]
[1736017026588,1.14936,3626.9,3626.5,7.51091648]
[1736017026786,0.4247,3626.8,3626.6,0.27577]
[1736017027194,0.27578,3626.6,3626.5,6.50679797]
[1736017027495,1.00411851,3626.7,3626.4,3.2078]
[1736017027496,0.27578,3626.5,3626.4,3.2078]
[1736017028196,1.00411851,3626.7,3626.4,3.2078]
[1736017028393,1.00411851,3626.7,3626.3,6.50679797]
[1736017028596,0.27578,3626.6,3626.4,0.27579]
[1736017028799,3.50867553,3626.6,3626.4,0.27579]
[1736017029286,3.50867553,3626.6,3626.4,1.27990851]
[1736017029887,3.23289553,3626.6,3626.4,1.27990851]
[1736017030394,3.23289553,3626.5,3626.4,1.27990851]
[1736017031696,3.23289553,3626.5,3626.4,1.00411851]
[1736017031896,2.1550499,3626.5,3626.4,1.27990851]
[1736017033199,3.23289553,3626.5,3626.4,1.27990851]
[1736017033402,3.23289553,3626.5,3626.4,1.00411851]
[1736017033600,3.23289553,3626.5,3626.4,1.27990851]
[1736017033801,3.23289553,3626.5,3626.4,1.00411851]
[1736017034899,3.23289553,3626.5,3626.4,1.27990851]
[1736017035605,3.64669718,3626.5,3626.4,1.27990851]
[1736017036806,3.23289553,3626.5,3626.4,1.27990851]
[1736017040514,3.64669718,3626.6,3626.4,1.00411851]
[1736017040717,3.64669718,3626.6,3626.5,0.27578]
[1736017042115,3.23289553,3626.6,3626.5,0.27578]
[1736017045915,3.23289553,3626.6,3626.5,3.89498]
[1736017047817,2.15204765,3626.8,3626.7,0.27577]
[1736017048822,2.15204765,3626.8,3626.7,0.70937]
[1736017049122,3.23289553,3626.9,3626.8,0.27576]
[1736017049421,3.23289553,3626.9,3626.8,1.27987851]
[1736017050517,2.15197516,3626.9,3626.8,1.27987851]
[1736017056728,3.23289553,3626.9,3626.8,1.27987851]
[1736017058632,0.4463,3627.1,3626.9,0.27575]
[1736017058633,3.23289553,3627.0,3626.9,0.27575]
[1736017060925,3.23289553,3627.1,3626.8,1.00411851]
[1736017061132,3.23289553,3627.1,3627.0,1.27986851]
[1736017061627,3.23289553,3627.1,3627.0,2.15526851]
[1736017062731,2.15287572,3627.1,3627.0,2.15526851]
[1736017072237,3.23289553,3627.2,3627.1,0.27574]
[1736017075642,0.27575,3627.1,3627.0,0.27574]
[1736017075845,0.70195,3627.1,3626.9,4.21191851]
[1736017076035,0.4262,3627.1,3626.9,4.48766851]
[1736017076236,0.27575,3627.0,3626.9,4.48766851]
[1736017076836,3.50864553,3627.0,3626.9,4.48766851]
[1736017078737,3.9223904,3627.0,3626.9,4.48766851]
[1736017079434,3.9223904,3627.0,3626.9,4.21191851]
[1736017079839,3.9223904,3627.0,3626.9,1.00411851]
[1736017081639,0.68949487,3627.0,3626.9,1.00411851]
[1736017083540,0.27575,3627.0,3626.9,1.00411851]
[1736017084741,0.68949487,3627.0,3626.9,1.00411851]
[1736017088741,4.99800213,3627.0,3626.9,1.00411851]
[1736017092346,4.72225213,3627.0,3626.9,1.27986851]
[1736017092649,4.72225213,3627.0,3626.9,4.48766851]
[1736017094555,0.97694794,3627.9,3627.2,0.27573]
[1736017094556,2.15472288,3627.3,3627.2,0.27573]
[1736017095153,2.15472288,3627.3,3627.2,0.68143]
[1736017095850,2.15472288,3627.4,3627.3,0.27572]
[1736017096049,2.15472288,3627.4,3627.3,3.48352]
[1736017099460,2.15472288,3627.4,3627.3,3.89372]
[1736017100957,2.15472288,3627.5,3627.3,3.618]
[1736017101158,2.15472288,3627.5,3627.4,0.27572]
[1736017101358,2.15472288,3627.5,3627.4,1.27983851]
[1736017103555,2.57212288,3627.5,3627.4,1.27983851]
[1736017103755,2.57212288,3627.5,3627.3,3.618]
[1736017104053,3.57624139,3627.5,3627.1,4.3364629]
[1736017104253,0.27573,3627.2,3627.1,4.3364629]
[1736017104659,3.23208432,3627.4,3627.0,1.00411851]
[1736017104859,1.13264,3627.1,3627.0,1.00411851]
[1736017106356,4.77846506,3627.1,3627.0,1.00411851]
[1736017107462,1.54638074,3627.1,3627.0,1.00411851]
[1736017108366,1.13264,3627.1,3627.0,1.00411851]
[1736017108863,0.8569,3627.1,3627.0,1.00411851]
[1736017109765,1.27064074,3627.1,3627.0,1.00411851]
[1736017111069,4.50074596,3627.1,3627.0,1.00411851]
[1736017111763,4.77648596,3627.1,3627.0,1.00411851]
[1736017112568,1.13264,3627.1,3627.0,1.00411851]
[1736017114778,0.8569,3627.1,3627.0,1.00411851]
[1736017117274,4.08700522,3627.1,3627.0,1.27986851]
[1736017117570,4.08700522,3627.1,3627.0,1.00411851]
[1736017117971,4.49710522,3627.1,3627.0,1.00411851]
[1736017118764,1.267,3627.1,3627.0,1.00411851]
[1736017119167,1.54274,3627.1,3627.0,1.00411851]
[1736017119774,4.49710522,3627.1,3627.0,1.00411851]
[1736017120364,4.49710522,3627.1,3627.0,1.27986851]
[1736017121076,1.267,3627.1,3627.0,1.27986851]
[1736017123975,3.41972966,3627.1,3627.0,1.27986851]
[1736017124178,2.56282966,3627.1,3627.0,1.27986851]
[1736017125069,2.15272966,3627.1,3627.0,1.27986851]
[1736017125473,2.15272966,3627.2,3627.1,0.27574]
[1736017125876,2.15272966,3627.2,3627.1,0.68814]
[1736017127180,2.15272966,3627.3,3627.2,0.27573]
[1736017127476,2.15272966,3627.3,3627.2,1.27984851]
[1736017128073,3.63950522,3627.4,3627.2,1.00411851]
[1736017128376,3.63950522,3627.4,3627.3,3.48352]
[1736017129379,4.05319002,3627.4,3627.3,3.48352]
[1736017129879,4.05319002,3627.4,3627.3,0.27572]
[1736017133581,0.8230848,3627.4,3627.3,0.27572]
[1736017134482,0.4094,3627.4,3627.3,0.27572]
[1736017135678,0.8230848,3627.4,3627.3,0.27572]
[1736017137385,0.27573,3627.3,3627.2,0.27573]
[1736017137889,0.27574,3627.2,3627.1,0.27574]
[1736017139580,4.99793206,3627.2,3627.1,0.27574]
[1736017140485,4.72219206,3627.2,3627.1,0.27574]
[1736017142697,4.99791206,3627.3,3627.2,0.27573]
[1736017142991,4.99791206,3627.3,3627.2,1.27984851]
[1736017143489,4.99791206,3627.3,3627.2,1.00411851]
[1736017143986,4.72219206,3627.3,3627.2,1.00411851]
[1736017144190,4.72219206,3627.3,3627.2,1.27984851]
[1736017147500,0.4136848,3627.3,3627.2,1.27984851]
[1736017148901,6.06203546,3627.4,3627.2,1.00411851]
[1736017149096,6.06203546,3627.4,3627.3,0.27572]
[1736017150098,10.35527355,3627.4,3627.3,0.27572]
[1736017152705,10.07955355,3627.4,3627.3,0.27572]
[1736017153193,10.07955355,3627.4,3627.3,0.72042]
[1736017156809,5.13658011,3627.4,3627.3,0.72042]
[1736017157004,5.13658011,3627.4,3627.3,1.58302]
[1736017158505,4.72289531,3627.4,3627.3,1.58302]
[1736017159608,5.13658011,3627.4,3627.3,1.58302]
[1736017161107,4.72718011,3627.4,3627.3,1.58302]
[1736017162617,0.4136848,3627.4,3627.3,12.45010701]
[1736017162815,2.15647209,3627.4,3627.3,12.45010701]
[1736017165314,2.15647209,3627.5,3627.4,0.27572]
[1736017165516,2.15647209,3627.5,3627.4,4.48763851]
[1736017166215,2.15647209,3627.5,3627.4,8.82427856]
[1736017167716,2.15647209,3627.5,3627.4,4.48763851]
[1736017167913,2.15647209,3627.5,3627.4,3.48352]
[1736017168117,2.15647209,3627.5,3627.4,4.21191851]
[1736017168319,3.44267209,3627.5,3627.4,4.21191851]
[1736017169015,3.71838209,3627.5,3627.4,3.2078]
[1736017169211,3.71838209,3627.5,3627.2,1.00411851]
[1736017169212,0.27572,3627.4,3627.2,1.00411851]
[1736017169413,1.27983851,3627.4,3627.2,0.27573]
[1736017169813,1.00411851,3627.4,3627.3,0.27572]
[1736017170014,5.21030294,3627.5,3627.3,0.27572]
[1736017170214,5.21030294,3627.5,3627.3,1.27983851]
[1736017170418,4.31349531,3627.4,3627.3,1.27983851]
[1736017171514,4.31349531,3627.4,3627.3,4.48763851]
[1736017171710,4.72719539,3627.4,3627.3,4.48763851]
[1736017173224,3.64634298,3627.4,3627.3,4.48763851]
[1736017174111,3.64634298,3627.4,3627.3,1.27983851]
[1736017174515,3.64634298,3627.4,3627.3,1.70653851]
[1736017179416,2.15504682,3627.5,3627.3,5.76745856]
[1736017179625,2.15504682,3627.5,3627.4,2.10133851]
[1736017182923,2.15504682,3627.5,3627.4,5.30913851]
[1736017186034,3.64630366,3627.6,3627.5,0.27571]
[1736017188730,0.4061,3627.7,3627.4,5.03341851]
[1736017188731,3.6387429,3627.7,3627.4,5.03341851]
[1736017188927,3.6387429,3627.7,3627.6,1.27981851]
[1736017190225,4.05239079,3627.7,3627.6,1.27981851]
[1736017196637,0.81974789,3627.7,3627.6,1.27981851]
[1736017198235,0.4061,3627.7,3627.6,1.27981851]
[1736017199332,0.81974789,3627.7,3627.6,1.27981851]
[1736017201642,0.41364789,3627.7,3627.6,1.27981851]
[1736017203845,3.64714211,3627.7,3627.6,1.27981851]
[1736017205341,3.23349422,3627.7,3627.6,1.27981851]
[1736017207843,3.23349422,3627.7,3627.6,5.61645856]
[1736017208645,3.23349422,3627.7,3627.6,6.62057707]
[1736017208850,3.23349422,3627.7,3627.6,5.61645856]
[1736017209251,2.15558085,3627.8,3627.6,5.36370797]
[1736017209551,2.15558085,3627.8,3627.7,0.27569]
[1736017209757,2.15558085,3627.8,3627.7,0.69699]
[1736017210247,2.15558085,3627.8,3627.7,1.70110851]
[1736017210954,0.26958085,3627.9,3627.8,0.27569]
[1736017211153,0.26958085,3627.9,3627.8,4.48760851]
[1736017211952,3.23349422,3628.3,3628.2,0.27566]
[1736017212154,3.23349422,3628.3,3628.2,1.27977851]
[1736017212655,3.23349422,3628.3,3628.2,4.48757851]
[1736017213347,3.23349422,3628.5,3628.4,0.27564]
[1736017213542,3.23349422,3628.5,3628.4,1.27975851]
[1736017213851,3.23349422,3628.5,3628.3,0.4202]
[1736017214049,1.00411851,3628.4,3628.1,4.33402617]
[1736017214247,1.27977851,3628.2,3628.1,4.33402617]
[1736017215053,1.27977851,3628.2,3628.0,4.33402617]
[1736017215054,0.27566,3628.1,3628.0,4.33402617]
[1736017215351,2.11147851,3628.1,3628.0,4.33402617]
[1736017216451,0.27568,3627.9,3627.8,0.27568]
[1736017217857,4.99548233,3627.9,3627.8,0.27568]
[1736017219555,0.68926377,3627.9,3627.8,0.27568]
[1736017220559,0.41358377,3627.9,3627.8,1.27979851]
[1736017221259,0.68926377,3627.9,3627.8,1.27979851]
[1736017223958,4.99548233,3627.9,3627.8,1.27979851]
[1736017224360,4.71980233,3627.9,3627.8,1.27979851]
[1736017225061,0.41358377,3627.9,3627.8,1.27979851]
[1736017225967,0.41358377,3627.9,3627.8,4.48759851]
[1736017226866,0.41358377,3627.9,3627.8,5.49171702]
[1736017227864,3.22907509,3628.2,3628.1,0.27566]
[1736017228067,3.22907509,3628.2,3628.1,1.27977851]
[1736017229071,3.22907509,3628.6,3628.1,5.33814468]
[1736017229274,3.22907509,3628.6,3628.5,1.27974851]
[1736017230967,3.65967509,3628.8,3628.7,0.27562]
[1736017231169,3.22907509,3628.8,3628.7,4.48753851]
[1736017232370,3.22907509,3628.8,3628.7,5.49165702]
[1736017232581,3.22907509,3629.1,3629.0,0.27559]
[1736017233462,0.838,3629.4,3628.9,2.00823702]
[1736017233663,0.838,3629.4,3629.3,1.27968851]
[1736017234070,0.4078,3629.4,3629.3,1.27968851]
[1736017234272,3.22907509,3629.5,3629.4,0.27556]
[1736017234975,3.22907509,3629.5,3629.4,0.68956]
[1736017235168,3.22907509,3629.5,3629.4,1.11216]
[1736017235780,3.22907509,3629.7,3629.6,0.27555]
[1736017235970,3.22907509,3629.7,3629.6,2.49649444]
[1736017237172,0.441,3629.8,3629.6,2.22094444]
[1736017237378,0.4228,3630.0,3629.8,0.27553]
[1736017238181,0.4228,3630.0,3629.9,2.49647444]
[1736017238982,0.27553,3629.9,3629.7,3.48334]
[1736017239178,0.27553,3629.8,3629.5,0.27555]
[1736017239485,0.27553,3629.8,3629.5,0.27556]
[1736017239783,0.4302,3629.7,3629.6,0.27555]
[1736017239976,0.70574,3629.7,3629.4,1.11216]
[1736017240178,0.4302,3629.7,3629.5,0.27555]
[1736017240678,0.4302,3629.7,3629.4,0.8366]
[1736017240876,0.4302,3629.7,3628.9,3.2078]
[1736017241078,0.4477,3629.6,3628.9,3.2078]
[1736017241381,0.27559,3629.0,3628.9,3.2078]
[1736017241885,0.27556,3629.5,3628.9,3.48339]
[1736017242080,0.4474,3629.4,3629.0,2.22094444]
[1736017242291,0.4474,3629.4,3629.0,2.49653444]
[1736017242584,0.27557,3629.3,3628.9,3.4834]
[1736017242779,0.27557,3629.3,3629.0,0.27559]
[1736017243174,0.4474,3629.4,3628.9,3.2078]
[1736017243381,3.2078,3629.3,3628.6,0.8632]
[1736017243686,0.27561,3628.8,3628.5,3.48343]
[1736017243984,0.4066,3628.7,3628.5,3.48343]
[1736017244382,0.4066,3628.7,3628.6,0.27562]
[1736017247278,0.4094,3629.0,3628.8,0.2756]
[1736017249579,0.4094,3629.0,3628.9,0.2756]